[Event "African Open (w)"]
[Site "followchess.com"]
[Date "2022.09.27"]
[Round "9"]
[White "Likando Namakau"]
[Black "OLORUNTOLA, Oluwatobiloba"]
[Result "0-1"]
[ECO "D30"]
[WhiteElo "1527"]
[BlackElo "1918"]
[PlyCount "176"]
[EventDate "2022.??.??"]
[TimeControl "5400+30"]

1. d4 {[%emt 0:00:14]} d5 {[%emt 0:00:08]} 2. c4 {[%emt 0:00:25]} Nf6 {[%emt 0:
00:30]} 3. Bg5 {[%emt 0:02:23]} e6 {[%emt 0:00:19]} 4. Nf3 {[%emt 0:00:22]} Be7
{[%emt 0:00:32]} 5. e3 {[%emt 0:00:48]} h6 {[%emt 0:01:19]} 6. Bf4 {[%emt 0:00:
23]} c5 {[%emt 0:02:11]} 7. Be2 {[%emt 0:02:10]} Nc6 {[%emt 0:00:52]} 8. O-O {
[%emt 0:01:43]} dxc4 {[%emt 0:00:59]} 9. Bxc4 {[%emt 0:00:49]} cxd4 {[%emt 0:
00:11]} 10. exd4 {[%emt 0:00:26]} O-O {[%emt 0:01:38]} 11. Nc3 {[%emt 0:00:57]}
a6 {[%emt 0:03:13]} 12. Rc1 {[%emt 0:03:04]} Nd5 {[%emt 0:06:10]} 13. Nxd5 {
[%emt 0:01:12]} exd5 {[%emt 0:00:01]} 14. Bd3 {[%emt 0:00:59]} Bg4 {[%emt 0:05:
35]} 15. Bb1 {[%emt 0:02:29]} Bh5 {[%emt 0:00:49]} 16. Qb3 {[%emt 0:12:12]}
Bxf3 {[%emt 0:06:14]} 17. Qxf3 {[%emt 0:00:47]} Bg5 {[%emt 0:00:23]} 18. Qd3 {
[%emt 0:02:30]} g6 {[%emt 0:03:28]} 19. Be3 {[%emt 0:02:09]} f5 {[%emt 0:12:30]
} 20. g3 {[%emt 0:05:18]} Qd6 {[%emt 0:16:46]} 21. h4 {[%emt 0:11:20]} Bxe3 {
[%emt 0:00:16]} 22. Qxe3 {[%emt 0:01:13]} h5 {[%emt 0:02:52]} 23. Rcd1 {
[%emt 0:05:52]} Kg7 {[%emt 0:01:14]} 24. Qf3 {[%emt 0:08:43]} Rad8 {[%emt 0:02:
38]} 25. a3 {[%emt 0:03:17]} Qf6 {[%emt 0:00:53]} 26. Qf4 {[%emt 0:01:15]} Rfe8
{[%emt 0:04:57]} 27. f3 {[%emt 0:06:27]} Re2 {[%emt 0:03:52]} 28. Rf2 {[%emt 0:
02:16]} Rde8 {[%emt 0:01:06]} 29. Kg2 {[%emt 0:05:36]} Re1 {[%emt 0:02:35]} 30.
Rxe1 {[%emt 0:02:57]} Rxe1 {[%emt 0:00:07]} 31. Ba2 {[%emt 0:00:21]} Qxd4 {
[%emt 0:04:54]} 32. Qxd4+ {[%emt 0:00:42]} Nxd4 {[%emt 0:00:03]} 33. Bxd5 {
[%emt 0:00:12]} Re7 {[%emt 0:01:27]} 34. Rd2 {[%emt 0:01:06]} Nb5 {[%emt 0:00:
35]} 35. a4 {[%emt 0:03:17]} Na7 {[%emt 0:00:21]} 36. Rc2 {[%emt 0:00:57]} Rd7
{[%emt 0:03:58]} 37. Be6 {[%emt 0:01:51]} Re7 {[%emt 0:00:36]} 38. Bb3 {
[%emt 0:01:37]} Nc6 {[%emt 0:03:15]} 39. Rd2 {[%emt 0:00:49]} Na5 {[%emt 0:05:
55]} 40. Ba2 {[%emt 0:01:49]} Rc7 {[%emt 0:01:50]} 41. b4 {[%emt 0:01:38]} Nc6
{[%emt 0:00:22]} 42. Rc2 {[%emt 0:03:40]} Rd7 {[%emt 0:01:19]} 43. b5 {[%emt 0:
02:01]} axb5 {[%emt 0:00:00]} 44. axb5 {[%emt 0:00:00]} Nb4 {[%emt 0:00:00]}
45. Rb2 {[%emt 0:00:00]} Nxa2 {[%emt 0:00:00]} 46. Rxa2 {[%emt 0:00:00]} Rd5 {
[%emt 0:00:00]} 47. Rb2 {[%emt 0:00:00]} Kf6 {[%emt 0:00:00]} 48. b6 {[%emt 0:
00:00]} Ke6 {[%emt 0:00:00]} 49. Kf2 {[%emt 0:00:00]} Kd6 {[%emt 0:00:00]} 50.
Rb3 {[%emt 0:00:00]} Kc6 {[%emt 0:00:00]} 51. Re3 {[%emt 0:00:00]} Rd6 {
[%emt 0:00:00]} 52. Rb3 {[%emt 0:00:00]} Kc5 {[%emt 0:00:00]} 53. Rb1 {[%emt 0:
00:00]} Rxb6 {[%emt 0:00:00]} 54. Rc1+ {[%emt 0:00:00]} Kd6 {[%emt 0:00:00]}
55. Ke3 {[%emt 0:00:00]} Rc6 {[%emt 0:00:00]} 56. Rb1 {[%emt 0:00:00]} b6 {
[%emt 0:00:00]} 57. Kd4 {[%emt 0:00:00]} Kc7 {[%emt 0:00:00]} 58. Rb3 {[%emt 0:
00:00]} Rc5 {[%emt 0:00:00]} 59. f4 {[%emt 0:00:00]} Kc6 {[%emt 0:00:00]} 60.
Rb2 {[%emt 0:00:00]} b5 {[%emt 0:00:00]} 61. Re2 {[%emt 0:00:00]} Rd5+ {
[%emt 0:00:00]} 62. Kc3 {[%emt 0:00:00]} Kc5 {[%emt 0:01:51]} 63. Re6 {[%emt 0:
00:00]} b4+ {[%emt 0:00:48]} 64. Kc2 {[%emt 0:00:00]} Rd6 {[%emt 0:00:30]} 65.
Re5+ {[%emt 0:03:14]} Kc4 {[%emt 0:00:40]} 66. Re3 {[%emt 0:00:30]} Ra6 {
[%emt 0:01:18]} 67. Re7 {[%emt 0:01:01]} b3+ {[%emt 0:01:37]} 68. Kb2 {[%emt 0:
00:43]} Ra2+ {[%emt 0:01:31]} 69. Kb1 {[%emt 0:00:19]} Rg2 {[%emt 0:01:22]} 70.
Rc7+ {[%emt 0:00:18]} Kd4 {[%emt 0:00:55]} 71. Rd7+ {[%emt 0:01:25]} Ke4 {
[%emt 0:00:28]} 72. Re7+ {[%emt 0:01:20]} Kf3 {[%emt 0:00:35]} 73. Rb7 {
[%emt 0:00:29]} Kxg3 {[%emt 0:00:24]} 74. Rxb3+ {[%emt 0:00:22]} Kxh4 {[%emt 0:
00:27]} 75. Rb6 {[%emt 0:00:25]} Rg4 {[%emt 0:00:57]} 76. Kc1 {[%emt 0:00:13]}
Kg3 {[%emt 0:00:07]} 77. Kd2 {[%emt 0:00:38]} Kxf4 {[%emt 0:00:20]} 78. Ke2 {
[%emt 0:00:19]} h4 {[%emt 0:00:56]} 79. Rb8 {[%emt 0:00:32]} h3 {[%emt 0:00:23]
} 80. Rh8 {[%emt 0:00:21]} Kg3 {[%emt 0:00:08]} 81. Kf1 {[%emt 0:00:13]} Rh4 {
[%emt 0:00:29]} 82. Rg8 {[%emt 0:00:35]} Rf4+ {[%emt 0:00:23]} 83. Ke1 {
[%emt 0:00:24]} h2 {[%emt 0:00:22]} 84. Rxg6+ {[%emt 0:00:14]} Rg4 {[%emt 0:00:
05]} 85. Rh6 {[%emt 0:00:47]} Rh4 {[%emt 0:00:31]} 86. Rg6+ {[%emt 0:00:20]}
Kh3 {[%emt 0:00:16]} 87. Kf2 {[%emt 0:01:04]} h1=Q {[%emt 0:00:43]} 88. Rg3+ {
[%emt 0:01:09]} Kh2 {[%emt 0:00:07]} 0-1

[Event "African Open (w)"]
[Site "followchess.com"]
[Date "2022.09.27"]
[Round "9"]
[White "Ayemou Mazan Emmanuela Esther"]
[Black "Oyelese, Mayomi"]
[Result "1-0"]
[ECO "A45"]
[WhiteElo "1523"]
[BlackElo "1677"]
[PlyCount "151"]
[EventDate "2022.??.??"]
[TimeControl "5400+30"]

1. d4 {[%emt 0:00:06]} Nf6 {[%emt 0:00:04]} 2. e3 {[%emt 0:00:30]} e6 {[%emt 0:
00:12]} 3. Bd3 {[%emt 0:00:28]} d5 {[%emt 0:00:11]} 4. Nd2 {[%emt 0:00:21]} c5
{[%emt 0:01:04]} 5. c3 {[%emt 0:00:14]} a6 {[%emt 0:00:57]} 6. f4 {[%emt 0:00:
32]} Be7 {[%emt 0:01:46]} 7. Ngf3 {[%emt 0:00:16]} b5 {[%emt 0:00:50]} 8. a3 {
[%emt 0:01:03]} Bb7 {[%emt 0:00:38]} 9. O-O {[%emt 0:00:44]} Qc7 {[%emt 0:01:
43]} 10. Ne5 {[%emt 0:00:27]} Nbd7 {[%emt 0:00:35]} 11. Ndf3 {[%emt 0:01:00]}
Rc8 {[%emt 0:01:33]} 12. Ng5 {[%emt 0:01:06]} Nxe5 {[%emt 0:04:04]} 13. fxe5 {
[%emt 0:00:27]} c4 {[%emt 0:34:00]} 14. Bc2 {[%emt 0:03:12]} Ne4 {[%emt 0:04:
39]} 15. Nxf7 {[%emt 0:01:28]} O-O {[%emt 0:00:33]} 16. Nd6 {[%emt 0:02:26]}
Rxf1+ {[%emt 0:06:01]} 17. Qxf1 {[%emt 0:00:25]} Rf8 {[%emt 0:00:02]} 18. Qd1 {
[%emt 0:01:04]} Bxd6 {[%emt 0:01:10]} 19. exd6 {[%emt 0:01:31]} Nxd6 {[%emt 0:
01:26]} 20. Qh5 {[%emt 0:00:46]} Ne4 {[%emt 0:00:41]} 21. Bxe4 {[%emt 0:00:29]}
dxe4 {[%emt 0:00:00]} 22. Bd2 {[%emt 0:00:41]} Rf5 {[%emt 0:01:16]} 23. Qe8+ {
[%emt 0:00:38]} Rf8 {[%emt 0:00:02]} 24. Qxe6+ {[%emt 0:00:36]} Qf7 {[%emt 0:
01:12]} 25. Qxf7+ {[%emt 0:00:26]} Rxf7 {[%emt 0:00:01]} 26. Rf1 {[%emt 0:00:
26]} Rf6 {[%emt 0:00:13]} 27. Be1 {[%emt 0:02:53]} Kf7 {[%emt 0:01:47]} 28.
Rxf6+ {[%emt 0:00:37]} gxf6 {[%emt 0:00:19]} 29. Kf2 {[%emt 0:00:19]} f5 {
[%emt 0:00:35]} 30. Kg3 {[%emt 0:00:19]} Kf6 {[%emt 0:05:14]} 31. Kf4 {[%emt 0:
00:18]} h6 {[%emt 0:00:40]} 32. Bh4+ {[%emt 0:01:35]} Ke6 {[%emt 0:00:02]} 33.
g4 {[%emt 0:00:27]} fxg4 {[%emt 0:00:19]} 34. Kxg4 {[%emt 0:00:28]} Kf7 {
[%emt 0:00:52]} 35. Kf5 {[%emt 0:00:55]} Ba8 {[%emt 0:05:18]} 36. Ke5 {[%emt 0:
00:34]} Bb7 {[%emt 0:03:50]} 37. Kd6 {[%emt 0:00:32]} Ke8 38. Kc7 {[%emt 0:01:
07]} Bd5 {[%emt 0:01:54]} 39. Kb6 {[%emt 0:00:32]} Kd7 {[%emt 0:00:25]} 40. Bg3
{[%emt 0:01:45]} h5 {[%emt 0:00:42]} 41. Kc5 {[%emt 0:00:43]} Ke6 {[%emt 0:00:
44]} 42. Bf4 {[%emt 0:01:44]} Bb7 {[%emt 0:01:54]} 43. Kb6 {[%emt 0:00:27]} Bc8
{[%emt 0:01:08]} 44. Kc7 {[%emt 0:00:17]} Bd7 {[%emt 0:00:19]} 45. d5+ {
[%emt 0:00:19]} Ke7 {[%emt 0:00:04]} 46. Bg5+ {[%emt 0:02:12]} Ke8 {[%emt 0:00:
20]} 47. Kd6 {[%emt 0:00:47]} Bc8 {[%emt 0:01:17]} 48. Ke5 {[%emt 0:00:23]} Kd7
{[%emt 0:16:38]} 49. Kxe4 {[%emt 0:00:23]} Kc7 {[%emt 0:00:46]} 50. Kd4 {
[%emt 0:00:41]} Kb6 {[%emt 0:00:45]} 51. e4 {[%emt 0:00:22]} Ka5 {[%emt 0:00:
26]} 52. Ke3 {[%emt 0:01:27]} Ka4 {[%emt 0:00:05]} 53. Kd2 {[%emt 0:00:19]} Kb3
{[%emt 0:00:06]} 54. Kc1 {[%emt 0:00:05]} a5 {[%emt 0:00:13]} 55. Be7 {[%emt 0:
02:12]} h4 {[%emt 0:03:40]} 56. Bxh4 {[%emt 0:00:26]} b4 {[%emt 0:00:19]} 57.
cxb4 {[%emt 0:00:46]} axb4 {[%emt 0:00:03]} 58. axb4 {[%emt 0:00:19]} Kxb4 {
[%emt 0:00:06]} 59. e5 {[%emt 0:00:14]} Kc5 {[%emt 0:00:21]} 60. d6 {[%emt 0:
00:09]} Kd4 {[%emt 0:01:09]} 61. Bg3 {[%emt 0:00:25]} Kd3 {[%emt 0:00:35]} 62.
h4 {[%emt 0:00:20]} Ke4 {[%emt 0:01:11]} 63. h5 {[%emt 0:01:13]} Kf5 {[%emt 0:
00:23]} 64. h6 {[%emt 0:00:09]} Kg6 {[%emt 0:00:34]} 65. Bf4 {[%emt 0:00:16]}
Bf5 {[%emt 0:01:37]} 66. Kd2 {[%emt 0:00:17]} Kf7 {[%emt 0:00:48]} 67. Kc3 {
[%emt 0:00:58]} Bd3 {[%emt 0:00:05]} 68. b3 {[%emt 0:00:20]} Bf5 69. bxc4 Ke6 {
[%emt 0:00:00]} 70. Kd4 {[%emt 0:00:00]} Kd7 {[%emt 0:00:00]} 71. Kc5 {[%emt 0:
00:00]} Bh7 {[%emt 0:00:00]} 72. Kb6 {[%emt 0:00:00]} Bg6 {[%emt 0:00:00]} 73.
c5 {[%emt 0:00:00]} Be4 {[%emt 0:00:00]} 74. c6+ {[%emt 0:00:00]} Kc8 {[%emt 0:
00:00]} 75. d7+ {[%emt 0:00:00]} Kd8 {[%emt 0:00:00]} 76. Bg5# {[%emt 0:00:00]}
1-0

[Event "African Open (w)"]
[Site "followchess.com"]
[Date "2022.09.27"]
[Round "9"]
[White "Michael Bridget"]
[Black "Paulo, Jemima"]
[Result "1-0"]
[ECO "B55"]
[WhiteElo "1800"]
[BlackElo "1886"]
[PlyCount "93"]
[EventDate "2022.??.??"]
[TimeControl "5400+30"]

1. e4 {[%emt 0:00:08]} c5 {[%emt 0:00:08]} 2. Nf3 {[%emt 0:00:29]} d6 {[%emt 0:
00:18]} 3. d4 {[%emt 0:00:36]} cxd4 {[%emt 0:00:18]} 4. Nxd4 {[%emt 0:00:14]}
Nf6 {[%emt 0:00:11]} 5. f3 {[%emt 0:00:24]} g6 {[%emt 0:00:08]} 6. c4 {[%emt 0:
00:19]} Bg7 {[%emt 0:00:11]} 7. Nc3 {[%emt 0:00:37]} O-O {[%emt 0:02:07]} 8.
Be3 {[%emt 0:00:36]} Nc6 {[%emt 0:00:07]} 9. Qd2 {[%emt 0:00:19]} Nxd4 {
[%emt 0:00:26]} 10. Bxd4 {[%emt 0:00:25]} Be6 {[%emt 0:00:11]} 11. Be2 {
[%emt 0:00:25]} Qa5 {[%emt 0:10:06]} 12. O-O {[%emt 0:01:45]} Nd7 {[%emt 0:00:
20]} 13. Bxg7 {[%emt 0:00:52]} Kxg7 {[%emt 0:00:07]} 14. Kh1 {[%emt 0:01:05]}
Rac8 {[%emt 0:06:21]} 15. b3 {[%emt 0:01:45]} a6 {[%emt 0:00:46]} 16. f4 {
[%emt 0:09:14]} f6 {[%emt 0:02:04]} 17. Rac1 {[%emt 0:10:50]} Rc7 {[%emt 0:11:
06]} 18. Rc2 {[%emt 0:10:58]} Rfc8 {[%emt 0:09:31]} 19. Rfc1 {[%emt 0:04:28]}
Qb4 {[%emt 0:09:42]} 20. h3 {[%emt 0:12:04]} h5 {[%emt 0:00:12]} 21. Qe3 {
[%emt 0:03:07]} Qc5 {[%emt 0:05:26]} 22. Qg3 {[%emt 0:01:51]} Kh6 {[%emt 0:01:
48]} 23. Bd3 {[%emt 0:01:53]} g5 {[%emt 0:01:33]} 24. Nd5 {[%emt 0:11:17]} Bxd5
{[%emt 0:00:14]} 25. exd5 {[%emt 0:00:37]} Rg8 {[%emt 0:01:23]} 26. Re1 {
[%emt 0:02:38]} Nf8 {[%emt 0:01:16]} 27. Rce2 {[%emt 0:00:55]} e5 {[%emt 0:01:
38]} 28. dxe6 {[%emt 0:00:42]} Re7 {[%emt 0:00:18]} 29. f5 {[%emt 0:02:44]} g4
{[%emt 0:06:51]} 30. h4 {[%emt 0:01:03]} Rgg7 {[%emt 0:01:27]} 31. Qe3+ {
[%emt 0:00:53]} Kh7 {[%emt 0:02:04]} 32. Qxc5 {[%emt 0:00:58]} dxc5 {[%emt 0:
00:07]} 33. g3 {[%emt 0:00:56]} Kg8 {[%emt 0:01:35]} 34. Be4 {[%emt 0:01:05]}
Nh7 {[%emt 0:04:43]} 35. Rd1 {[%emt 0:00:52]} Re8 {[%emt 0:00:34]} 36. Red2 {
[%emt 0:00:24]} Nf8 {[%emt 0:00:16]} 37. Rd8 {[%emt 0:01:06]} Rge7 {[%emt 0:00:
51]} 38. Rxe8 {[%emt 0:00:44]} Rxe8 {[%emt 0:00:08]} 39. Bxb7 {[%emt 0:00:12]}
Nxe6 {[%emt 0:00:25]} 40. fxe6 {[%emt 0:00:31]} Kf8 {[%emt 0:00:11]} 41. Bd5 {
[%emt 0:01:02]} Ke7 {[%emt 0:00:09]} 42. Rf1 {[%emt 0:00:23]} Rh8 {[%emt 0:00:
12]} 43. Kg2 {[%emt 0:00:54]} a5 {[%emt 0:00:17]} 44. Kf2 {[%emt 0:01:25]} f5 {
[%emt 0:03:09]} 45. Ke3 {[%emt 0:00:21]} Kf6 {[%emt 0:00:14]} 46. Kf4 {[%emt 0:
00:18]} Re8 {[%emt 0:00:24]} 47. Re1 {[%emt 0:00:48]} 1-0

[Event "African Open (w)"]
[Site "followchess.com"]
[Date "2022.09.27"]
[Round "9"]
[White "Yavo Tchetche, Marie"]
[Black "Nkhoma, Desiderata"]
[Result "1/2-1/2"]
[ECO "A22"]
[WhiteElo "1363"]
[BlackElo "1446"]
[PlyCount "99"]
[EventDate "2022.??.??"]
[TimeControl "5400+30"]

1. c4 {[%emt 0:00:28]} e5 {[%emt 0:00:05]} 2. Nc3 {[%emt 0:00:31]} Nf6 {
[%emt 0:00:15]} 3. d3 {[%emt 0:00:27]} Bb4 {[%emt 0:00:20]} 4. Bd2 {[%emt 0:01:
15]} O-O {[%emt 0:00:19]} 5. a3 {[%emt 0:00:20]} Bc5 {[%emt 0:00:50]} 6. b4 {
[%emt 0:00:26]} Bd4 {[%emt 0:00:05]} 7. e3 {[%emt 0:00:19]} Bxc3 {[%emt 0:00:
36]} 8. Bxc3 {[%emt 0:00:11]} d6 {[%emt 0:00:04]} 9. Ne2 {[%emt 0:00:54]} Nc6 {
[%emt 0:00:28]} 10. g3 {[%emt 0:00:16]} Ne7 {[%emt 0:03:08]} 11. Bg2 {[%emt 0:
00:18]} c6 {[%emt 0:00:39]} 12. O-O {[%emt 0:00:15]} Be6 {[%emt 0:00:10]} 13.
Rc1 {[%emt 0:01:40]} Qd7 {[%emt 0:00:00]} 14. f4 {[%emt 0:02:23]} Bh3 {[%emt 0:
00:50]} 15. fxe5 {[%emt 0:00:49]} Bxg2 {[%emt 0:03:18]} 16. Kxg2 {[%emt 0:01:
27]} Ng4 {[%emt 0:01:03]} 17. Qd2 {[%emt 0:01:00]} Nxe5 {[%emt 0:01:31]} 18.
Bxe5 {[%emt 0:04:27]} dxe5 {[%emt 0:00:19]} 19. d4 {[%emt 0:01:04]} Ng6 {
[%emt 0:01:45]} 20. Rcd1 {[%emt 0:00:41]} Rad8 {[%emt 0:00:55]} 21. d5 {
[%emt 0:01:24]} cxd5 {[%emt 0:03:21]} 22. cxd5 {[%emt 0:00:58]} Qg4 {[%emt 0:
00:39]} 23. Nc3 {[%emt 0:01:40]} h5 {[%emt 0:02:13]} 24. Qe2 {[%emt 0:00:27]}
Qxe2+ {[%emt 0:05:43]} 25. Nxe2 {[%emt 0:00:44]} Ne7 {[%emt 0:03:24]} 26. e4 {
[%emt 0:01:15]} f5 {[%emt 0:00:47]} 27. d6 {[%emt 0:00:51]} Nc8 {[%emt 0:00:01]
} 28. Rxf5 {[%emt 0:01:03]} Rxf5 {[%emt 0:00:28]} 29. exf5 {[%emt 0:00:38]}
Rxd6 {[%emt 0:00:47]} 30. Rc1 {[%emt 0:02:01]} Rc6 {[%emt 0:02:23]} 31. h3 {
[%emt 0:01:26]} Rxc1 {[%emt 0:02:00]} 32. Nxc1 {[%emt 0:00:06]} Nd6 {[%emt 0:
00:15]} 33. g4 {[%emt 0:01:01]} hxg4 {[%emt 0:00:50]} 34. hxg4 {[%emt 0:00:47]}
Kf7 {[%emt 0:01:00]} 35. Nd3 {[%emt 0:04:38]} e4 {[%emt 0:00:39]} 36. Nc5 {
[%emt 0:01:22]} Kf6 {[%emt 0:01:07]} 37. Kg3 {[%emt 0:00:49]} b6 {[%emt 0:04:
04]} 38. Ne6 {[%emt 0:00:39]} g6 {[%emt 0:02:43]} 39. Nd4 {[%emt 0:01:39]} gxf5
{[%emt 0:00:11]} 40. Kf4 {[%emt 0:00:27]} fxg4 {[%emt 0:02:21]} 41. Kxg4 {
[%emt 0:00:12]} a5 {[%emt 0:01:50]} 42. bxa5 {[%emt 0:00:29]} bxa5 {[%emt 0:00:
33]} 43. a4 {[%emt 0:00:29]} Nb7 {[%emt 0:04:57]} 44. Kf4 {[%emt 0:00:22]} Nc5
{[%emt 0:00:14]} 45. Nc6 {[%emt 0:00:21]} Nxa4 {[%emt 0:00:23]} 46. Kxe4 {
[%emt 0:01:16]} Nc5+ {[%emt 0:00:51]} 47. Kd5 {[%emt 0:00:21]} a4 {[%emt 0:00:
30]} 48. Kxc5 {[%emt 0:00:33]} a3 {[%emt 0:00:10]} 49. Nb4 {[%emt 0:00:20]} a2
50. Nxa2 {[%emt 0:00:30]} 1/2-1/2

[Event "African Open (w)"]
[Site "followchess.com"]
[Date "2022.09.27"]
[Round "9"]
[White "Caxita, Esperanca"]
[Black "Marochkina, Nadezhda Valerevna"]
[Result "1-0"]
[ECO "B13"]
[WhiteElo "1961"]
[BlackElo "1689"]
[PlyCount "100"]
[EventDate "2022.??.??"]
[TimeControl "5400+30"]

1. e4 {[%emt 0:00:02]} c6 {[%emt 0:00:12]} 2. d4 {[%emt 0:00:14]} d5 {[%emt 0:
00:08]} 3. exd5 {[%emt 0:00:10]} cxd5 {[%emt 0:00:13]} 4. Bd3 {[%emt 0:00:11]}
Nc6 {[%emt 0:00:14]} 5. c3 {[%emt 0:00:14]} Nf6 {[%emt 0:00:22]} 6. Nf3 {
[%emt 0:00:28]} Bg4 {[%emt 0:00:43]} 7. Bg5 {[%emt 0:02:09]} e6 {[%emt 0:00:27]
} 8. Nbd2 {[%emt 0:00:08]} Be7 {[%emt 0:01:40]} 9. O-O {[%emt 0:00:33]} O-O {
[%emt 0:00:15]} 10. Re1 {[%emt 0:01:20]} a5 {[%emt 0:08:17]} 11. a4 {[%emt 0:
01:20]} Qb6 {[%emt 0:04:18]} 12. Qb1 {[%emt 0:02:11]} h6 {[%emt 0:00:29]} 13.
Bh4 {[%emt 0:00:22]} Rfe8 {[%emt 0:07:25]} 14. h3 {[%emt 0:05:20]} Bxf3 {
[%emt 0:01:15]} 15. Nxf3 {[%emt 0:00:10]} Rac8 {[%emt 0:06:59]} 16. Bb5 {
[%emt 0:01:55]} Ne4 {[%emt 0:02:54]} 17. Bxe7 {[%emt 0:01:30]} Rxe7 {[%emt 0:
00:11]} 18. Re2 {[%emt 0:03:46]} Nd6 {[%emt 0:04:18]} 19. Bd3 {[%emt 0:00:30]}
Nc4 {[%emt 0:05:45]} 20. Bxc4 {[%emt 0:02:27]} dxc4 {[%emt 0:00:11]} 21. Qe4 {
[%emt 0:00:58]} Rd7 {[%emt 0:03:33]} 22. Rae1 {[%emt 0:01:07]} Qb3 {[%emt 0:01:
45]} 23. Qc2 {[%emt 0:00:28]} Qxc2 {[%emt 0:01:55]} 24. Rxc2 {[%emt 0:00:06]}
Ne7 {[%emt 0:01:11]} 25. Ne5 {[%emt 0:00:58]} Rdd8 {[%emt 0:00:35]} 26. Rce2 {
[%emt 0:00:26]} Nd5 {[%emt 0:00:27]} 27. g3 {[%emt 0:07:40]} Rd6 {[%emt 0:01:
26]} 28. f4 {[%emt 0:04:16]} g6 {[%emt 0:04:46]} 29. Kf2 {[%emt 0:00:31]} Kg7 {
[%emt 0:00:28]} 30. Nf3 {[%emt 0:02:56]} Rb6 {[%emt 0:01:08]} 31. Ne5 {[%emt 0:
02:46]} Rd6 {[%emt 0:03:50]} 32. Kg2 {[%emt 0:01:32]} Rc7 {[%emt 0:03:16]} 33.
Ng4 {[%emt 0:02:15]} Rb6 {[%emt 0:01:57]} 34. Nf2 {[%emt 0:01:19]} Nf6 {
[%emt 0:02:05]} 35. Rd2 {[%emt 0:04:03]} h5 {[%emt 0:03:19]} 36. g4 {[%emt 0:
01:48]} hxg4 {[%emt 0:00:54]} 37. hxg4 {[%emt 0:00:08]} Rd6 {[%emt 0:03:28]}
38. Kf3 {[%emt 0:01:12]} Rd8 {[%emt 0:01:17]} 39. Rh1 {[%emt 0:01:39]} Rcc8 {
[%emt 0:00:55]} 40. g5 {[%emt 0:01:38]} Nh5 {[%emt 0:05:16]} 41. Re2 {[%emt 0:
02:10]} Rd5 {[%emt 0:02:29]} 42. Re5 {[%emt 0:02:22]} Kf8 {[%emt 0:09:08]} 43.
Rhe1 {[%emt 0:01:05]} Ng7 {[%emt 0:02:37]} 44. Ng4 {[%emt 0:00:57]} Rxe5 {
[%emt 0:00:00]} 45. Rxe5 {[%emt 0:00:00]} b6 {[%emt 0:00:00]} 46. Rb5 {[%emt 0:
00:00]} Rb8 {[%emt 0:00:00]} 47. Ne5 {[%emt 0:00:00]} Ke8 {[%emt 0:00:00]} 48.
Nxc4 {[%emt 0:00:00]} Kd7 {[%emt 0:00:00]} 49. Rxb6 {[%emt 0:00:00]} Rh8 {
[%emt 0:00:00]} 50. Rb5 Ke8 1-0

[Event "African Open (w)"]
[Site "followchess.com"]
[Date "2022.09.27"]
[Round "9"]
[White "Pires, Luzia"]
[Black "Wafa, Shahenda"]
[Result "1/2-1/2"]
[ECO "D05"]
[WhiteElo "1839"]
[BlackElo "2110"]
[PlyCount "61"]
[EventDate "2022.??.??"]
[TimeControl "5400+30"]

1. d4 {[%emt 0:00:06]} Nf6 {[%emt 0:00:16]} 2. Nf3 {[%emt 0:00:15]} d5 {
[%emt 0:00:58]} 3. e3 {[%emt 0:00:11]} e6 {[%emt 0:00:14]} 4. Bd3 {[%emt 0:00:
11]} c5 {[%emt 0:00:25]} 5. b3 {[%emt 0:00:11]} Nc6 {[%emt 0:00:20]} 6. a3 {
[%emt 0:00:27]} cxd4 {[%emt 0:00:25]} 7. exd4 {[%emt 0:00:12]} Bd6 {[%emt 0:00:
34]} 8. O-O {[%emt 0:00:13]} O-O {[%emt 0:00:09]} 9. Nbd2 {[%emt 0:00:16]} e5 {
[%emt 0:00:16]} 10. dxe5 {[%emt 0:00:35]} Nxe5 {[%emt 0:00:07]} 11. Nxe5 {
[%emt 0:00:07]} Bxe5 {[%emt 0:00:10]} 12. Rb1 {[%emt 0:00:06]} h6 {[%emt 0:00:
35]} 13. h3 {[%emt 0:00:19]} Qc7 {[%emt 0:00:19]} 14. Nf3 {[%emt 0:00:47]} Bc3
{[%emt 0:01:27]} 15. Bb2 {[%emt 0:00:48]} Bxb2 {[%emt 0:00:25]} 16. Rxb2 {
[%emt 0:00:11]} Be6 {[%emt 0:00:10]} 17. Rb1 {[%emt 0:00:30]} Rfe8 {[%emt 0:00:
24]} 18. Rc1 {[%emt 0:00:22]} Qd7 {[%emt 0:00:40]} 19. c4 {[%emt 0:01:13]} dxc4
{[%emt 0:00:07]} 20. Bxc4 {[%emt 0:00:08]} Qxd1 {[%emt 0:00:10]} 21. Rfxd1 {
[%emt 0:00:11]} Bxc4 {[%emt 0:00:09]} 22. Rxc4 {[%emt 0:00:14]} Rac8 {[%emt 0:
00:08]} 23. Rdc1 {[%emt 0:03:10]} Rxc4 {[%emt 0:00:17]} 24. Rxc4 {[%emt 0:00:
02]} Re7 {[%emt 0:00:12]} 25. Rc2 {[%emt 0:00:21]} Kf8 {[%emt 0:00:15]} 26.
Rc8+ {[%emt 0:00:15]} Re8 {[%emt 0:00:06]} 27. Rxe8+ {[%emt 0:00:09]} Kxe8 {
[%emt 0:00:06]} 28. Kf1 {[%emt 0:00:09]} Kd7 {[%emt 0:00:17]} 29. Ke2 {[%emt 0:
00:02]} a6 {[%emt 0:00:13]} 30. Kd3 {[%emt 0:00:22]} Kd6 {[%emt 0:00:05]} 31.
Kd4 {[%emt 0:00:15]} 1/2-1/2

[Event "African Open (w)"]
[Site "followchess.com"]
[Date "2022.09.27"]
[Round "9"]
[White "Laubscher, Anzel"]
[Black "ONOJA, Iyefu Joy"]
[Result "1/2-1/2"]
[ECO "C00"]
[WhiteElo "1705"]
[BlackElo "1762"]
[PlyCount "91"]
[EventDate "2022.??.??"]
[TimeControl "5400+30"]

1. e4 {[%emt 0:00:02]} e6 {[%emt 0:00:06]} 2. d3 {[%emt 0:00:09]} d5 {[%emt 0:
00:11]} 3. Nd2 {[%emt 0:00:05]} Nf6 {[%emt 0:00:09]} 4. Ngf3 {[%emt 0:00:11]}
Nc6 {[%emt 0:00:31]} 5. g3 {[%emt 0:00:16]} dxe4 {[%emt 0:00:21]} 6. dxe4 {
[%emt 0:00:10]} e5 {[%emt 0:00:30]} 7. Bg2 {[%emt 0:00:35]} Bc5 {[%emt 0:02:57]
} 8. O-O {[%emt 0:01:00]} h6 {[%emt 0:00:20]} 9. c3 {[%emt 0:01:43]} a5 {
[%emt 0:00:06]} 10. h3 {[%emt 0:04:10]} O-O {[%emt 0:00:12]} 11. Nh4 {[%emt 0:
07:03]} Be6 {[%emt 0:08:16]} 12. Kh2 {[%emt 0:05:10]} Bd6 {[%emt 0:02:55]} 13.
Qe2 {[%emt 0:04:39]} Rb8 {[%emt 0:05:32]} 14. Nc4 {[%emt 0:05:58]} b5 {[%emt 0:
05:36]} 15. Ne3 {[%emt 0:03:12]} Ne7 {[%emt 0:09:34]} 16. f4 {[%emt 0:05:45]}
Ng6 {[%emt 0:05:56]} 17. f5 {[%emt 0:07:21]} Nxh4 {[%emt 0:00:17]} 18. gxh4 {
[%emt 0:00:58]} Bc8 {[%emt 0:00:45]} 19. Rg1 {[%emt 0:05:33]} Bc5 {[%emt 0:03:
10]} 20. Bf3 {[%emt 0:04:04]} Kh7 {[%emt 0:01:20]} 21. Bd2 {[%emt 0:07:49]} Bb7
{[%emt 0:02:02]} 22. Qg2 {[%emt 0:02:10]} Rg8 {[%emt 0:00:07]} 23. Rad1 {
[%emt 0:02:11]} Qd3 {[%emt 0:03:12]} 24. Bc1 {[%emt 0:01:34]} Qb1 {[%emt 0:00:
56]} 25. b4 {[%emt 0:07:27]} Bxe4 {[%emt 0:09:37]} 26. Bxe4 {[%emt 0:03:52]}
Qxe4 {[%emt 0:00:15]} 27. Qxe4 {[%emt 0:00:44]} Nxe4 {[%emt 0:00:12]} 28. bxc5
{[%emt 0:00:39]} Nxc5 {[%emt 0:01:31]} 29. Rd5 {[%emt 0:02:11]} Ne4 {[%emt 0:
02:24]} 30. Rxe5 {[%emt 0:01:26]} Nxc3 {[%emt 0:00:11]} 31. Rc5 {[%emt 0:02:57]
} Nxa2 {[%emt 0:01:45]} 32. Rxc7 {[%emt 0:02:39]} Nxc1 {[%emt 0:01:35]} 33.
Rgxc1 {[%emt 0:00:27]} Rge8 {[%emt 0:01:28]} 34. Ng4 {[%emt 0:05:33]} Re2+ {
[%emt 0:01:39]} 35. Kg3 {[%emt 0:00:43]} h5 {[%emt 0:01:54]} 36. Nf2 {[%emt 0:
00:27]} Kg8 {[%emt 0:01:32]} 37. Ra7 {[%emt 0:02:16]} b4 {[%emt 0:02:09]} 38.
Rcc7 {[%emt 0:03:04]} b3 {[%emt 0:00:18]} 39. Kf3 {[%emt 0:02:33]} Rxf2+ {
[%emt 0:01:51]} 40. Kxf2 {[%emt 0:00:13]} b2 {[%emt 0:00:01]} 41. Rxf7 {
[%emt 0:01:00]} b1=Q {[%emt 0:00:10]} 42. Rxg7+ {[%emt 0:00:12]} Kh8 {[%emt 0:
00:07]} 43. Rh7+ {[%emt 0:00:07]} Kg8 {[%emt 0:00:08]} 44. Rhg7+ {[%emt 0:00:
12]} Kf8 45. Raf7+ Ke8 46. Re7+ 1/2-1/2